[Event "CCT Julius Baer-D2 2024"]
[Site "Online"]
[Date "2024.09.28"]
[Round "51"]
[White "Robson, Ray"]
[Black "Anton Guijarro, David"]
[Result "1-0"]
[ECO "E48"]
[WhiteElo "2700"]
[BlackElo "2665"]
[Annotator "TA"]
[PlyCount "217"]
[EventDate "2024.09.25"]
[EventType "swiss"]
[EventCountry "NET"]
[SourceTitle "playchess.com"]
[Source "ChessBase"]
[SourceQuality "1"]
[TimeControl "600+2"]

{[%evp 120,216,0,-2,0,-2,0,-2,0,-2,0,0,0,0,0,-2,0,-2,-2,-2,0,-46,-46,-46,-23,-46,0,-46,0,-56,-56,-56,-56,-97,-56,-65,-44,-97,0,-56,-56,-94,0,-72,0,-64,0,-59,-56,-56,-56,-90,0,-59,0,-82,-48,-56,0,-82,0,-16,0,-62,0,-56,0,-57,-39,-118,-110,-135,-135,-143,-138,-185,-160,-185,-185,-185,-172,-185,-185,-192,-168,-156,-97,-185,-97,-97,0,-97,-45,-45,-45,-44,-42,-38,29999]} 1. c4 {[%emt 0:00:02]} e6 {[%emt 0:00:03]} 2. Nc3 {[%emt 0:00:02]} Nf6 {[%emt 0:00:01]} 3. d4 {[%emt 0:00:11]} Bb4 {[%emt 0:00:02]} 4. e3 {[%emt 0:00:01]} O-O {[%emt 0:00:04]} 5. Bd3 {[%emt 0:00:02]} c5 {[%emt 0:00:01]} 6. Nge2 {[%emt 0:00:14]} cxd4 {[%emt 0:00:03]} 7. exd4 {[%emt 0:00:01]} d5 {[%emt 0:00:01]} 8. cxd5 {[%emt 0:00:05]} Nxd5 {[%emt 0:00:01]} 9. a3 {[%emt 0:00:08] E48: Nimzo-Indian: Rubinstein: 5 Bd3 d5 including 6 Ne2, but excluding 6 a3.} Bd6 {[%emt 0:00:07]} 10. Bc2 {[%emt 0:00:39]} Nc6 {[%emt 0:00:21]} 11. Qd3 {[%emt 0:00:03]} g6 {[%emt 0:00:26]} 12. Ne4 {[%emt 0:00:43]} Be7 {[%emt 0:00:37]} 13. Bh6 {[%emt 0:00:19]} Re8 {[%emt 0:00:05]} 14. Rd1 $146 {[%emt 0:00:13]} ({Predecessor:} 14. O-O b6 15. Rad1 Bb7 16. Bb3 a6 17. Rfe1 Rc8 18. Ba2 Ncb4 19. axb4 Nxb4 20. Qg3 Bxe4 21. Bxe6 {0-1 Milov,V (2705)-Arnold,M (2336) World op 36th 2008 (1)}) 14... Nf6 {[%emt 0:00:21]} 15. h4 {[%emt 0:00:38]} Nxe4 {[%emt 0:00:20]} 16. Qxe4 {[%emt 0:00:02]} Qd5 {[%emt 0:00:02]} 17. h5 {[%emt 0:00:53]} Qxe4 {[%emt 0:00:10]} 18. Bxe4 {[%emt 0:00:00]} Bf6 {[%emt 0:00:12]} 19. Rd3 {[%emt 0:00:15]} e5 {[%emt 0:00:16]} 20. hxg6 {[%emt 0:04:56]} hxg6 {[%emt 0:00:34]} 21. Rf3 {[%emt 0:00:02]} exd4 {[%emt 0:01:49]} 22. Bxc6 {[%emt 0:00:50]} bxc6 {[%emt 0:00:02]} 23. Rxf6 {[%emt 0:00:00]} Ba6 {[%emt 0:01:06]} 24. Rxc6 {[%emt 0:00:02]} Bxe2 {[%emt 0:02:17]} 25. Kd2 {[%emt 0:00:03]} Bb5 {[%emt 0:00:24]} 26. Bg5 {[%emt 0:00:03]} Re2+ {[%emt 0:00:06]} 27. Kd1 {[%emt 0:00:09]} Rae8 {[%emt 0:00:05]} 28. Rd6 {[%emt 0:00:20]} Rxb2 {[%emt 0:00:25]} 29. Rxd4 {[%emt 0:00:02]} Rb1+ {[%emt 0:00:36]} 30. Bc1 {[%emt 0:00:01]} Rc8 {[%emt 0:00:02]} 31. Kd2 {[%emt 0:00:01]} Kg7 {[%emt 0:00:09]} 32. Rb4 {[%emt 0:00:02]} Rxb4 {[%emt 0:00:01]} 33. axb4 {[%emt 0:00:00]} f6 {[%emt 0:00:05]} 34. Bb2 {[%emt 0:00:03]} a6 {[%emt 0:00:05]} 35. Bd4 {[%emt 0:00:02]} g5 {[%emt 0:00:01]} 36. Re1 {[%emt 0:00:03]} Kf7 {[%emt 0:00:01]} 37. Rh1 {[%emt 0:00:01]} Rc4 {[%emt 0:00:03]} 38. Bc3 {[%emt 0:00:02]} Kg7 {[%emt 0:00:02]} 39. Re1 {[%emt 0:00:02]} Kf7 {[%emt 0:00:01]} 40. Rh1 {[%emt 0:00:01]} Kg7 {[%emt 0:00:00]} 41. f3 {[%emt 0:00:02]} Rc6 {[%emt 0:00:03]} 42. Re1 {[%emt 0:00:03]} Kf7 {[%emt 0:00:01]} 43. Rh1 {[%emt 0:00:02]} Rd6+ {[%emt 0:00:02]} 44. Kc2 {[%emt 0:00:01]} Kg7 {[%emt 0:00:01]} 45. Rh5 {[%emt 0:00:02]} Kg6 {[%emt 0:00:05]} 46. Rh8 {[%emt 0:00:02]} Bf1 {[%emt 0:00:04]} 47. g3 {[%emt 0:00:01]} Bg2 {[%emt 0:00:02]} 48. f4 {[%emt 0:00:02]} Be4+ {[%emt 0:00:02]} 49. Kb3 {[%emt 0:00:01]} gxf4 {[%emt 0:00:00]} 50. gxf4 {[%emt 0:00:00]} Kf5 {[%emt 0:00:01]} 51. Rf8 {[%emt 0:00:04]} Bd5+ {[%emt 0:00:03]} 52. Ka4 {[%emt 0:00:01]} Bc4 {[%emt 0:00:01]} 53. Be5 {[%emt 0:00:07]} Re6 {[%emt 0:00:02]} 54. Ka5 {[%emt 0:00:02]} Bb5 {[%emt 0:00:02]} 55. Bc3 {[%emt 0:00:03]} Rc6 {[%emt 0:00:01]} 56. Bb2 {[%emt 0:00:01]} Rd6 {[%emt 0:00:02]} 57. Rf7 {[%emt 0:00:01]} Rc6 {[%emt 0:00:02]} 58. Ba1 {[%emt 0:00:01]} Rd6 {[%emt 0:00:01]} 59. Bc3 {[%emt 0:00:01]} Re6 {[%emt 0:00:04]} 60. Rf8 {[%emt 0:00:03]} Rc6 {[%emt 0:00:01]} 61. Be5 {[%emt 0:00:01]} Re6 {[%emt 0:00:02]} 62. Bc7 {[%emt 0:00:01]} Rc6 {[%emt 0:00:02]} 63. Bb8 {[%emt 0:00:03]} Re6 {[%emt 0:00:02]} 64. Rc8 {[%emt 0:00:02]} Ke4 {[%emt 0:00:08]} 65. Rc1 {[%emt 0:00:02]} Kf5 {[%emt 0:00:01]} 66. Rc5+ {[%emt 0:00:01]} Ke4 {[%emt 0:00:01]} 67. Rh5 {[%emt 0:00:02]} Rc6 {[%emt 0:00:03]} 68. Rh6 {[%emt 0:00:04]} Kf5 {[%emt 0:00:01]} 69. Rh5+ {[%emt 0:00:01]} Ke6 {[%emt 0:00:04]} 70. f5+ {[%emt 0:00:02]} (70. Rc5 $11 {might be stronger.}) 70... Kd5 $15 {[%emt 0:00:01]} 71. Rh4 {[%emt 0:00:03]} Rc4 {[%emt 0:00:03]} 72. Rh6 {[%emt 0:00:02]} Rc6 {[%emt 0:00:01]} 73. Rh4 $1 {[%emt 0:00:02]} Rc4 {[%emt 0:00:01]} (73... Rc8 $15 74. Bh2 Rc1) 74. Rh5 {[%emt 0:00:04]} (74. Rh6 $11) 74... Ke4 $15 {[%emt 0:00:02]} 75. Bd6 {[%emt 0:00:03]} Rc6 {[%emt 0:00:02]} 76. Be7 {[%emt 0:00:02]} Ke5 {[%emt 0:00:01]} 77. Bc5 {[%emt 0:00:01]} Rc8 {[%emt 0:00:04]} 78. Bf2 {[%emt 0:00:03]} (78. Kb6 $15) 78... Rc6 {[%emt 0:00:04]} (78... Kf4 $17) 79. Bg3+ {[%emt 0:00:01]} (79. Bc5 $1 $11) 79... Ke4 $15 {[%emt 0:00:00]} 80. Bh4 {[%emt 0:00:03]} Ke5 {[%emt 0:00:02]} (80... Kf4 $17) 81. Bf2 {[%emt 0:00:01]} (81. Bg3+ $11 {keeps the balance.} Ke4 82. Bb8) 81... Ke4 {[%emt 0:00:02]} (81... Kf4 $17) 82. Bc5 {[%emt 0:00:02]} (82. Bh4 $1 $11) 82... Ke5 {[%emt 0:00:00]} ({Better is} 82... Kf4 $15) 83. Be7 {[%emt 0:00:01]} (83. Bf2 $1 $11) 83... Rc7 {[%emt 0:00:03]} 84. Bf8 {[%emt 0:00:02]} Rc8 {[%emt 0:00:01]} 85. Bc5 {[%emt 0:00:02]} Rc6 {[%emt 0:00:01]} ({Black should try} 85... Kf4 $17) 86. Bg1 {[%emt 0:00:01]} (86. Be7 $11) 86... Ke4 {[%emt 0:00:03]} (86... Kf4 $15) 87. Bh2 {[%emt 0:00:02]} (87. Bc5 $11) 87... Rc8 {[%emt 0:00:01]} 88. Kb6 {[%emt 0:00:02]} Rc6+ {[%emt 0:00:01]} (88... Rc2 $15) 89. Kb7 {[%emt 0:00:00]} (89. Ka5 $11) 89... Rc4 {[%emt 0:00:01]} (89... Rc1 $17) 90. Bd6 {[%emt 0:00:02]} Rc6 {[%emt 0:00:03]} 91. Bb8 {[%emt 0:00:03]} (91. Bh2 $11) 91... Rc4 {[%emt 0:00:02]} (91... Rc1 $15) 92. Ba7 {[%emt 0:00:02]} (92. Bd6 $11) 92... Ke5 {[%emt 0:00:05]} (92... Rxb4 $2 {perishes.} 93. Rh4+ Kxf5 94. Rxb4 $18) (92... Kf4 $15) 93. Bc5 {[%emt 0:00:03]} (93. Bb8+ $11 Ke4 94. Bc7) 93... Rf4 {[%emt 0:00:06]} 94. Rh2 {[%emt 0:00:05]} (94. Kc7 $15 Rc4 (94... Rxf5 95. Bd4+ Ke6 96. Rxf5 $11) 95. Rh2) 94... Kxf5 $17 {[%emt 0:00:01]} 95. Kc7 {[%emt 0:00:01]} Ke6 {[%emt 0:00:03]} 96. Rd2 {[%emt 0:00:02]} Re4 {[%emt 0:00:02]} 97. Rf2 {[%emt 0:00:02]} (97. Rh2 $17) 97... f5 {[%emt 0:00:01]} 98. Rh2 {[%emt 0:00:03]} f4 {[%emt 0:00:01]} 99. Rh6+ {[%emt 0:00:01]} Kf5 {[%emt 0:00:01]} 100. Rh5+ {[%emt 0:00:00]} Kg4 {[%emt 0:00:01]} 101. Rh8 {[%emt 0:00:02]} Re5 {[%emt 0:00:03]} 102. Kd6 {[%emt 0:00:01]} Re2 {[%emt 0:00:04]} (102... Rg5 $142 103. Rh6 Bc4) 103. Rg8+ {[%emt 0:00:02]} (103. Kd5 $17) 103... Kh3 {[%emt 0:00:01]} (103... Kf5 $19 104. Rg7 Rd2+ 105. Kc7 f3 106. Rf7+ Kg4) 104. Rf8 {[%emt 0:00:02]} Kg4 {[%emt 0:00:01]} ({Black should play} 104... Kg3 $17 {aiming for ...f3.} 105. Rg8+ Kf3) 105. Kd5 {[%emt 0:00:02]} (105. Rg8+ $11 Kf5 106. Kd5) 105... f3 {[%emt 0:00:01]} (105... Kg3 $17 106. Rg8+ Kf3) 106. Rg8+ $1 $15 {[%emt 0:00:02]} Kh3 {[%emt 0:00:01]} 107. Rf8 {[%emt 0:00:03]} Kg2 {[%emt 0:00:01]} (107... Kg3 $5 108. Rg8+ $8 Kh2 109. Rh8+ Kg3 110. Rg8+ Kh2 111. Rh8+ Kg2 112. Rg8+ Kh1 $17) 108. Rg8+ {[%emt 0:00:02]} Kf1 $2 {[%emt 0:00:01][%mdl 8192]} (108... Kh2 $15 109. Rh8+ Kg2 110. Rg8+ Kh1) 109. Rg1# {[%emt 0:00:01]} 1-0

[Event "CCT Julius Baer-D2 2024"]
[Site "Online"]
[Date "2024.09.28"]
[Round "51"]
[White "Yakubboev, Nodirbek"]
[Black "Bok, Benjamin"]
[Result "0-1"]
[ECO "D50"]
[WhiteElo "2666"]
[BlackElo "2596"]
[Annotator "TA"]
[PlyCount "80"]
[EventDate "2024.09.25"]
[EventType "swiss"]
[EventCountry "NET"]
[SourceTitle "playchess.com"]
[Source "ChessBase"]
[SourceQuality "1"]
[TimeControl "600+2"]

{[%evp 14,80,16,22,25,32,19,21,18,14,18,10,5,5,14,15,0,0,51,25,37,37,55,52,41,58,54,52,59,55,70,63,52,62,59,34,68,71,61,50,78,70,111,115,108,109,107,109,103,106,110,99,99,99,99,99,99,99,106,91,99,85,109,85,101,0,0,-6103,-5716]} 1. d4 {[%emt 0:00:03]} Nf6 {[%emt 0:00:04]} 2. c4 {[%emt 0:00:01]} e6 {[%emt 0:00:00]} 3. Nf3 {[%emt 0:00:00]} d5 {[%emt 0:00:02]} 4. Nc3 {[%emt 0:00:03]} c5 {[%emt 0:00:01]} 5. cxd5 {[%emt 0:00:24]} cxd4 {[%emt 0:00:02]} 6. Qxd4 {[%emt 0:00:04]} exd5 {[%emt 0:00:05]} 7. Bg5 {[%emt 0:00:17]} Be7 {[%emt 0:00:03]} 8. e3 {[%emt 0:00:03]} O-O {[%emt 0:00:05]} 9. Be2 {[%emt 0:00:20]} Nc6 {[%emt 0:00:09]} 10. Qd3 {[%emt 0:00:02]} h6 {[%emt 0:01:22] The position is equal.} 11. Bh4 {[%emt 0:00:03][%cal Bg5h4,Bh4g3,Bg3c7][%mdl 32]} Qb6 {[%emt 0:00:09]} 12. O-O {[%emt 0:01:34]} Rd8 {[%emt 0:00:09]} 13. Qb5 {[%emt 0:01:22]} Qxb5 {[%emt 0:01:54]} 14. Nxb5 {[%emt 0:00:05]} g5 {[%emt 0:00:23]} 15. Bg3 {[%emt 0:00:01]} Bg4 {[%emt 0:00:21]} (15... Ne4 $11) 16. Rfd1 {[%emt 0:00:32]} Rac8 {[%emt 0:00:11]} 17. h3 {[%emt 0:00:27]} Bh5 {[%emt 0:00:16]} 18. Bc7 {[%emt 0:00:03]} Rd7 {[%emt 0:00:18][%cal Oa7a6]} 19. g4 {[%emt 0:00:02]} Bg6 {[%emt 0:00:38][%cal Oa7a6] [#] Strongly threatening ...a6!} 20. Bh2 {[%emt 0:00:11]} a6 {[%emt 0:00:53]} 21. Nc3 {[%emt 0:01:05][%cal Bb5c3,Bc3a4,Ba4c5][%mdl 32]} Rcd8 {[%emt 0:00:19]} 22. Ne5 {[%emt 0:00:55]} Nxe5 {[%emt 0:00:05]} 23. Bxe5 {[%emt 0:00:00]} Ne4 {[%emt 0:00:31]} 24. Na4 {[%emt 0:01:08]} Bf6 {[%emt 0:01:55] Prevents Nb6} 25. Bxf6 {[%emt 0:00:02]} Nxf6 {[%emt 0:00:00]} 26. Rac1 {[%emt 0:00:00] Dodges Bc2} d4 {[%emt 0:00:24]} 27. Nc5 {[%emt 0:01:01]} Re7 {[%emt 0:00:01]} 28. Bf3 {[%emt 0:00:23]} (28. Rxd4 $2 {too greedy.} Rxd4 29. exd4 Rxe2 $19) 28... d3 {[%emt 0:00:01]} 29. Bxb7 {[%emt 0:00:26]} ({Of course not} 29. Nxb7 Rb8 $14) 29... Rb8 {[%emt 0:00:28][%cal Bd8b8,Bb8b2,Bb2a2][%mdl 32]} 30. Bxa6 {[%emt 0:00:04]} Rxb2 {[%emt 0:00:01]} 31. Bxd3 {[%emt 0:00:02]} Bxd3 {[%emt 0:00:03]} 32. Rxd3 {[%emt 0:00:11]} Rxa2 {[%emt 0:00:00]} 33. Rd6 {[%emt 0:00:04]} Kg7 {[%emt 0:00:02]} 34. Rc4 {[%emt 0:00:05]} Rea7 {[%emt 0:00:07]} 35. Kg2 {[%emt 0:00:04]} Rb2 {[%emt 0:00:05]} 36. Nd3 {[%emt 0:00:02]} Rd2 {[%emt 0:00:01]} 37. Kf3 {[%emt 0:00:02]} Raa2 {[%emt 0:00:03]} 38. Rcd4 {[%emt 0:00:02]} Ng8 {[%emt 0:00:04]} 39. Ke4 {[%emt 0:00:02]} (39. Rd7 $16) 39... Nf6+ $11 {[%emt 0:00:02]} 40. Ke5 $2 {[%emt 0:00:02][%mdl 8192] [#]} (40. Kf3 $11) 40... Ra5+ {[%emt 0:00:01] Weighted Error Value: White=0.23 (precise) /Black=0.10 (very precise) .  Loses game:     	White=1     	---        Mistake:       	White=1     	Black=1      Inaccurate:     	White=1     	Black=3      OK:         	White=18    	Black=13     Best:        	White=2     	Black=2} 0-1

[Event "CCT Julius Baer-D2 2024"]
[Site "Online"]
[Date "2024.09.28"]
[Round "51"]
[White "Anton Guijarro, David"]
[Black "Robson, Ray"]
[Result "1-0"]
[ECO "A34"]
[WhiteElo "2665"]
[BlackElo "2700"]
[Annotator "TA"]
[PlyCount "173"]
[EventDate "2024.09.25"]
[EventType "swiss"]
[EventCountry "NET"]
[SourceTitle "playchess.com"]
[Source "ChessBase"]
[SourceQuality "1"]
[TimeControl "600+2"]

{[%evp 100,173,437,188,260,12,300,271,306,0,67,105,191,203,161,95,89,85,265,286,831,277,249,249,334,0,180,0,0,0,0,0,20,-41,168,0,0,0,198,0,88,14,402,408,607,75,421,445,528,235,887,860,933,898,690,0,5281,1598,5648,5554,1875,1783,1681,1629,29980,29981,29983,29984,29985,29986,29987,29987,29987,29988,29988,29986]} 1. c4 {[%emt 0:00:04]} c5 {[%emt 0:00:09]} 2. Nf3 {[%emt 0:00:04]} Nc6 {[%emt 0:00:02]} 3. Nc3 {[%emt 0:00:04]} Nf6 {[%emt 0:00:04]} 4. e3 {[%emt 0:00:02]} e5 {[%emt 0:00:08]} 5. d4 {[%emt 0:00:09]} cxd4 {[%emt 0:00:03]} 6. exd4 {[%emt 0:00:02]} e4 {[%emt 0:00:02]} 7. Ne5 {[%emt 0:00:14]} Bb4 {[%emt 0:00:05]} 8. Be2 {[%emt 0:00:16]} O-O {[%emt 0:00:09] A34: Symmetrical English: 2 Nc3, lines with ...d5.} 9. O-O {[%emt 0:00:09]} Re8 {[%emt 0:00:44]} 10. Bf4 {[%emt 0:01:24]} Bxc3 {[%emt 0:01:01]} 11. bxc3 {[%emt 0:00:17]} b6 $146 {[%emt 0:00:03]} ({Predecessor:} 11... Ne7 12. c5 Ned5 13. Bd2 d6 14. cxd6 Qxd6 15. c4 Ne7 16. Bc3 Ng6 17. f4 exf3 18. Bxf3 {0-1 Wei,Y (2740)-Adhiban,B (2671) Hoogeveen Basque m rapid 2017 (2)}) 12. Nxc6 {[%emt 0:00:30]} dxc6 {[%emt 0:00:02]} 13. a4 {[%emt 0:00:01]} h6 {[%emt 0:00:52]} 14. Re1 {[%emt 0:00:02]} Bf5 {[%emt 0:00:25]} 15. h3 {[%emt 0:00:08]} Qd7 {[%emt 0:00:21]} 16. Bf1 {[%emt 0:00:04]} Nh7 {[%emt 0:00:44]} 17. Qb3 {[%emt 0:00:24]} Nf8 {[%emt 0:02:13]} 18. a5 {[%emt 0:00:13]} Ne6 {[%emt 0:00:06]} 19. Bg3 {[%emt 0:00:38]} bxa5 {[%emt 0:00:19]} 20. Rxa5 {[%emt 0:00:07]} Bg6 {[%emt 0:00:03]} 21. d5 {[%emt 0:00:14]} Nf8 {[%emt 0:00:47]} 22. Qa4 {[%emt 0:00:39]} Rec8 {[%emt 0:00:20]} 23. Qa3 {[%emt 0:00:48]} Qb7 {[%emt 0:00:36]} 24. c5 {[%emt 0:02:45]} cxd5 {[%emt 0:00:11]} 25. Ba6 {[%emt 0:00:03]} Qc6 {[%emt 0:00:16]} 26. Bxc8 {[%emt 0:00:02]} Rxc8 {[%emt 0:00:01]} 27. Bd6 {[%emt 0:00:18]} Ne6 {[%emt 0:00:08]} 28. Rd1 {[%emt 0:00:16]} e3 {[%emt 0:00:40]} 29. fxe3 {[%emt 0:00:02]} Be4 {[%emt 0:00:01]} 30. Qa2 {[%emt 0:00:09]} Rd8 {[%emt 0:00:16]} 31. Qa3 {[%emt 0:00:08]} d4 {[%emt 0:00:06]} 32. cxd4 {[%emt 0:00:10]} Rxd6 {[%emt 0:00:02]} 33. Qa4 {[%emt 0:00:21]} Rd7 {[%emt 0:00:06]} 34. Qxc6 {[%emt 0:00:03]} Bxc6 {[%emt 0:00:00]} 35. Rda1 {[%emt 0:00:03]} Rb7 {[%emt 0:00:01]} 36. Rxa7 {[%emt 0:00:04]} Rb3 {[%emt 0:00:02]} 37. R7a3 {[%emt 0:00:01]} Rb2 {[%emt 0:00:02]} 38. R1a2 {[%emt 0:00:01]} Rb1+ {[%emt 0:00:01]} 39. Kh2 {[%emt 0:00:01]} Bd5 {[%emt 0:00:02]} 40. Rc2 {[%emt 0:00:02]} Be4 {[%emt 0:00:01]} 41. Rd2 {[%emt 0:00:01]} Rc1 {[%emt 0:00:06]} 42. Ra7 {[%emt 0:00:06]} f5 {[%emt 0:00:03]} 43. Re7 {[%emt 0:00:06]} Bd5 {[%emt 0:00:02]} 44. Rd7 {[%emt 0:00:06]} Be4 {[%emt 0:00:01]} 45. Ra2 {[%emt 0:00:03]} Kh7 {[%emt 0:00:01]} 46. Re7 {[%emt 0:00:02]} Bd5 {[%emt 0:00:02]} 47. Rf2 {[%emt 0:00:00]} Kg6 {[%emt 0:00:01]} 48. h4 {[%emt 0:00:02]} Kf6 {[%emt 0:00:04]} 49. Rd7 {[%emt 0:00:01]} Be4 {[%emt 0:00:01]} 50. Rd6 {[%emt 0:00:02]} Kf7 {[%emt 0:00:03]} 51. h5 {[%emt 0:00:02]} (51. Ra2 $142) 51... Ke7 {[%emt 0:00:02]} (51... Ng5 {might work better.} 52. Rd7+ Kg8) 52. Ra6 $2 {[%emt 0:00:02]} (52. Ra2 $18 Rb1 53. Rb6 (53. Ra7+ Rb7 $16) 53... Rxb6 54. cxb6) 52... Ng5 $2 {[%emt 0:00:03][%mdl 8192]} (52... Nc7 $11 53. Ra7 Kd7) 53. Ra7+ {[%emt 0:00:05]} Kf6 {[%emt 0:00:01]} 54. Ra6+ $2 {[%emt 0:00:01]} (54. Rb2 $1 $18 {[%cal Rb2b6]}) 54... Kf7 {[%emt 0:00:01]} ({Black should play} 54... Ke7 $1 $11) 55. Rb2 $14 {[%emt 0:00:03]} Kg8 {[%emt 0:00:03]} (55... Rc3 $16) 56. Kg3 $1 $18 {[%emt 0:00:03]} Re1 {[%emt 0:00:02]} 57. Kf2 {[%emt 0:00:02]} (57. Kf4 $18) 57... Rc1 {[%emt 0:00:01]} 58. Ra7 {[%emt 0:00:01]} Ne6 $2 {[%emt 0:00:03]} (58... Rc3 $16) 59. Re7 $18 {[%emt 0:00:02]} Bd5 $2 {[%emt 0:00:01]} (59... Ng5 60. Rb8+ Kh7) 60. Rd7 $2 {[%emt 0:00:03]} (60. Rb8+ Kh7 61. Ree8) 60... Be4 $18 {[%emt 0:00:01]} 61. Kg3 {[%emt 0:00:02]} Rc3 {[%emt 0:00:02]} 62. Kf2 $2 {[%emt 0:00:02]} (62. Re7 $18 Rxe3+ (62... Nxd4 63. Rb8+ Kh7 64. Ree8 f4+ 65. Kxf4) 63. Kh2 (63. Kf2 Nf4 $18)) 62... f4 $2 {[%emt 0:00:02] [#]} (62... Rc1 $1 $11) 63. exf4 $2 {[%emt 0:00:02]} ({White must play} 63. Re7 $1 $18 {aiming for Rb8+.} fxe3+ 64. Kg1) 63... Nxf4 $11 {[%emt 0:00:00]} 64. Ra2 {[%emt 0:00:04]} Nxh5 {[%emt 0:00:02]} 65. Raa7 {[%emt 0:00:02]} Kh7 {[%emt 0:00:03]} 66. Re7 {[%emt 0:00:01]} (66. d5 $11 Rxc5 67. g4 Rxd5 (67... Rc2+ $2 68. Ke3 $18) 68. Rxd5 (68. gxh5 Rg5 $16) 68... Bxd5 69. gxh5) 66... Bd5 $2 {[%emt 0:00:02]} (66... Rc2+ $15 67. Ke3 Bxg2) 67. Rad7 $2 {[%emt 0:00:01]} (67. g4 $18 Rf3+ (67... Rc2+ $2 68. Ke3 $18) 68. Ke1) 67... Bc6 $11 {[%emt 0:00:03]} 68. Rc7 {[%emt 0:00:01]} Bd5 $2 {[%emt 0:00:01]} (68... Rc2+ $11 {and Black is okay.} 69. Re2 Rxe2+ 70. Kxe2 Bxg2) 69. Red7 $2 {[%emt 0:00:01]} (69. g4 $18 Rf3+ 70. Ke1) 69... Be4 {[%emt 0:00:01]} (69... Be6 $1 $11 70. Re7 Bb3) 70. g4 {[%emt 0:00:02]} (70. d5 $16) 70... Rf3+ $2 {[%emt 0:00:06][%mdl 8192]} (70... Nf6 $1 $11 71. Rxg7+ Kh8) 71. Ke1 $18 {[%emt 0:00:02]} Nf4 {[%emt 0:00:03]} (71... Nf6 $142) 72. Rxg7+ $18 {[%emt 0:00:01]} Kh8 {[%emt 0:00:00] [#]} 73. Rge7 $1 {[%emt 0:00:02]} Re3+ {[%emt 0:00:02]} 74. Kd1 {[%emt 0:00:05]} (74. Kd2 $142 {[%cal Rc7c8]} Re2+ 75. Kc1 Re1+ 76. Kb2 Re2+ 77. Ka3 Re3+ 78. Ka4 Bc6+ 79. Ka5 Rxe7 80. Rxe7) 74... Rd3+ $2 {[%emt 0:00:03]} (74... Bf3+ 75. Kd2 Rxe7 76. Rxe7 Bh1) 75. Kc1 $18 {[%emt 0:00:01]} Ne2+ {[%emt 0:00:03]} 76. Kb2 {[%emt 0:00:01]} Rd2+ {[%emt 0:00:02]} 77. Kb3 $2 {[%emt 0:00:06]} (77. Ka3 $18 {[%cal Rc7c8]} Bd5 78. Re8+ Bg8 79. d5) 77... Rd3+ $2 {[%emt 0:00:01][%mdl 8192]} (77... Bd5+ $11 78. Ka3 Ra2+ 79. Kb4 Rb2+ 80. Ka5 Ra2+ 81. Kb4 (81. Kb6 Rb2+ 82. Ka5 Ra2+ 83. Kb4 Rb2+ 84. Ka5 $11) 81... Rb2+ 82. Ka3 (82. Ka5 Ra2+ 83. Kb6 Rb2+ 84. Ka6 Ra2+ 85. Kb6 Rb2+ 86. Ka5 $11) 82... Ra2+ 83. Kb4) 78. Kb4 $18 {[%emt 0:00:02]} Rxd4+ {[%emt 0:00:00]} 79. Ka5 {[%emt 0:00:00]} Bd5 {[%emt 0:00:05]} 80. Rc8+ {[%emt 0:00:02]} Bg8 {[%emt 0:00:01]} 81. Rxe2 {[%emt 0:00:01]} Rxg4 {[%emt 0:00:02]} 82. Re7 {[%emt 0:00:02]} h5 {[%emt 0:00:01]} 83. c6 {[%emt 0:00:01]} h4 {[%emt 0:00:01]} 84. c7 {[%emt 0:00:03]} h3 {[%emt 0:00:00]} 85. Ree8 {[%emt 0:00:01]} Rg5+ {[%emt 0:00:08]} 86. Kb6 {[%emt 0:00:01]} Rg6+ {[%emt 0:00:01]} 87. Ka7 {[%emt 0:00:01]} 1-0